[Event "Titled Tuesday Blitz July 27 2021"]
[White "Altman, Joshua"]
[Black "Hansen, Eric"]
[WhiteFideId "426210"]
[BlackFideId "2606771"]
[WhiteElo "1945"]
[BlackElo "2568"]
[Result "1-0"]
[Round "01"]
[TimeControl "180+1"]
[Date "2021.07.27"]
[WhiteClock "0:00:18"]
[BlackClock "0:00:01"]

1. d4 {[%clk 0:03:00]}  Nf6 {[%clk 0:02:54]} 2. c4 {[%clk 0:03:01]}  e6 {[%clk 0:02:49]} 3. Nf3 {[%clk 0:03:00]}  g6 {[%clk 0:02:46]} 4. Nc3 {[%clk 0:02:59]}  Bg7 {[%clk 0:02:42]} 5. Bg5 {[%clk 0:02:51]}  h6 {[%clk 0:02:41]} 6. Bh4 {[%clk 0:02:51]}  d6 {[%clk 0:02:41]} 7. e3 {[%clk 0:02:52]}  b6 {[%clk 0:02:40]} 8. Be2 {[%clk 0:02:51]}  Bb7 {[%clk 0:02:40]} 9. Qc2 {[%clk 0:02:51]}  Nbd7 {[%clk 0:02:41]} 10. O-O {[%clk 0:02:51]}  Qe7 {[%clk 0:02:40]} 11. Rfd1 {[%clk 0:02:49]}  O-O {[%clk 0:02:40]} 12. b4 {[%clk 0:02:43]}  a5 {[%clk 0:02:36]} 13. a3 {[%clk 0:02:42]}  g5 {[%clk 0:02:35]} 14. Bg3 {[%clk 0:02:42]}  Nh5 {[%clk 0:02:35]} 15. Nd2 {[%clk 0:02:38]}  Nxg3 {[%clk 0:02:30]} 16. hxg3 {[%clk 0:02:39]}  e5 {[%clk 0:01:54]} 17. dxe5 {[%clk 0:02:21]}  Qxe5 {[%clk 0:01:47]} 18. Rac1 {[%clk 0:02:12]}  axb4 {[%clk 0:01:46]} 19. axb4 {[%clk 0:02:13]}  Nf6 {[%clk 0:01:43]} 20. Bf3 {[%clk 0:02:09]}  Bxf3 {[%clk 0:01:30]} 21. Nxf3 {[%clk 0:02:10]}  Qe7 {[%clk 0:01:21]} 22. Nd5 {[%clk 0:02:10]}  Nxd5 {[%clk 0:01:08]} 23. cxd5 {[%clk 0:02:11]}  Rfc8 {[%clk 0:01:08]} 24. Nd4 {[%clk 0:02:08]}  Qf6 {[%clk 0:01:04]} 25. Ra1 {[%clk 0:02:00]}  g4 {[%clk 0:01:03]} 26. Rxa8 {[%clk 0:01:58]}  Rxa8 {[%clk 0:01:03]} 27. Qxc7 {[%clk 0:01:58]}  Ra2 {[%clk 0:00:25]} 28. Rf1 {[%clk 0:01:55]}  h5 {[%clk 0:00:25]} 29. Qxb6 {[%clk 0:01:38]}  Qe5 {[%clk 0:00:24]} 30. Qd8+ {[%clk 0:01:27]}  Kh7 {[%clk 0:00:24]} 31. b5 {[%clk 0:01:20]}  Qxd5 {[%clk 0:00:23]} 32. b6 {[%clk 0:01:17]}  Rb2 {[%clk 0:00:23]} 33. Qc7 {[%clk 0:01:13]}  Be5 {[%clk 0:00:22]} 34. Nc6 {[%clk 0:00:38]}  Qb3 {[%clk 0:00:03]} 35. Nxe5 {[%clk 0:00:33]}  dxe5 {[%clk 0:00:04]} 36. Qxe5 {[%clk 0:00:31]}  Qxb6 {[%clk 0:00:04]} 37. Qxh5+ {[%clk 0:00:31]}  Kg8 {[%clk 0:00:03]} 38. Qxg4+ {[%clk 0:00:31]}  Kf8 {[%clk 0:00:04]} 39. Qc8+ {[%clk 0:00:27]}  Kg7 {[%clk 0:00:04]} 40. Qc3+ {[%clk 0:00:28]}  Kg8 {[%clk 0:00:04]} 41. Rd1 {[%clk 0:00:27]}  Rb1 {[%clk 0:00:02]} 42. Qc8+ {[%clk 0:00:25]}  Kg7 {[%clk 0:00:01]} 43. Qg4+ {[%clk 0:00:25]}  Kf8 {[%clk 0:00:01]} 44. Rxb1 {[%clk 0:00:23]}  Qxb1+ {[%clk 0:00:02]} 45. Kh2 {[%clk 0:00:24]}  Qh7+ {[%clk 0:00:03]} 46. Qh3 {[%clk 0:00:24]}  Qc2 {[%clk 0:00:03]} 47. Qh8+ {[%clk 0:00:24]}  Ke7 {[%clk 0:00:04]} 48. Qe5+ {[%clk 0:00:24]}  Kf8 {[%clk 0:00:05]} 49. Qb8+ {[%clk 0:00:24]}  Kg7 {[%clk 0:00:05]} 50. Qf4 {[%clk 0:00:25]}  Qh7+ {[%clk 0:00:04]} 51. Qh4 {[%clk 0:00:25]}  Qc2 {[%clk 0:00:05]} 52. f4 {[%clk 0:00:24]}  Qe4 {[%clk 0:00:04]} 53. Qg5+ {[%clk 0:00:23]}  Kf8 {[%clk 0:00:04]} 54. Qe5 {[%clk 0:00:24]}  Qh7+ {[%clk 0:00:04]} 55. Kg1 {[%clk 0:00:23]}  Qb1+ {[%clk 0:00:05]} 56. Kf2 {[%clk 0:00:23]}  Qc2+ {[%clk 0:00:05]} 57. Kf3 {[%clk 0:00:24]}  Qd1+ {[%clk 0:00:06]} 58. Ke4 {[%clk 0:00:24]}  Qc2+ {[%clk 0:00:06]} 59. Kd5 {[%clk 0:00:19]}  Qa2+ {[%clk 0:00:05]} 60. Kd6 {[%clk 0:00:19]}  Qa6+ {[%clk 0:00:05]} 61. Kd7 {[%clk 0:00:17]}  Qb7+ {[%clk 0:00:03]} 62. Qc7 {[%clk 0:00:17]}  Qd5+ {[%clk 0:00:03]} 63. Qd6+ {[%clk 0:00:17]}  Qxd6+ {[%clk 0:00:01]} 64. Kxd6 {[%clk 0:00:18]} 1-0


[Site "https://www.chess.com"]

[Event "Titled Tuesday Blitz July 27 2021"]
[White "Chernomordik, Pavel"]
[Black "Lazavik, Denis"]
[WhiteFideId "2804530"]
[BlackFideId "13515110"]
[WhiteElo "2273"]
[BlackElo "2436"]
[Result "0-1"]
[Round "01"]
[TimeControl "180+1"]
[Date "2021.07.27"]
[WhiteClock "0:00:16"]
[BlackClock "0:00:06"]

1. e4 {[%clk 0:03:00]}  e5 {[%clk 0:03:00]} 2. Nf3 {[%clk 0:02:58]}  Nc6 {[%clk 0:03:00]} 3. Bb5 {[%clk 0:02:57]}  Nf6 {[%clk 0:03:00]} 4. Qe2 {[%clk 0:02:56]}  Bc5 {[%clk 0:02:25]} 5. c3 {[%clk 0:02:52]}  d6 {[%clk 0:01:32]} 6. h3 {[%clk 0:02:50]}  O-O {[%clk 0:01:32]} 7. O-O {[%clk 0:02:47]}  Bb6 {[%clk 0:01:28]} 8. d3 {[%clk 0:02:42]}  Ne7 {[%clk 0:01:28]} 9. Nh4 {[%clk 0:02:33]}  c6 {[%clk 0:01:25]} 10. Ba4 {[%clk 0:02:32]}  Ng6 {[%clk 0:01:25]} 11. Nf5 {[%clk 0:02:31]}  h6 {[%clk 0:01:19]} 12. Qf3 {[%clk 0:02:26]}  d5 {[%clk 0:01:17]} 13. Rd1 {[%clk 0:02:08]}  Be6 {[%clk 0:01:10]} 14. Nd2 {[%clk 0:02:01]}  Nh7 {[%clk 0:00:59]} 15. Nf1 {[%clk 0:01:55]}  Bxf5 {[%clk 0:00:22]} 16. Qxf5 {[%clk 0:01:41]}  Qf6 {[%clk 0:00:22]} 17. Ng3 {[%clk 0:01:34]}  Rad8 {[%clk 0:00:20]} 18. Be3 {[%clk 0:01:22]}  Bxe3 {[%clk 0:00:19]} 19. fxe3 {[%clk 0:01:21]}  Qxf5 {[%clk 0:00:16]} 20. exf5 {[%clk 0:01:15]}  Ne7 {[%clk 0:00:16]} 21. Bc2 {[%clk 0:01:10]}  Nf6 {[%clk 0:00:16]} 22. Rf1 {[%clk 0:01:09]}  h5 {[%clk 0:00:09]} 23. d4 {[%clk 0:01:02]}  e4 {[%clk 0:00:07]} 24. Ne2 {[%clk 0:00:59]}  g6 {[%clk 0:00:06]} 25. fxg6 {[%clk 0:00:55]}  fxg6 {[%clk 0:00:07]} 26. Nf4 {[%clk 0:00:54]}  Rd6 {[%clk 0:00:07]} 27. h4 {[%clk 0:00:52]}  Kg7 {[%clk 0:00:05]} 28. Rae1 {[%clk 0:00:35]}  Nf5 {[%clk 0:00:05]} 29. Kh2 {[%clk 0:00:20]}  Ng4+ {[%clk 0:00:05]} 30. Kh3 {[%clk 0:00:19]}  Nfxe3 {[%clk 0:00:06]} 31. Nxh5+ {[%clk 0:00:16]}  gxh5 {[%clk 0:00:06]} 32. Rxf8 {[%clk 0:00:17]}  Kxf8 {[%clk 0:00:06]} 33. Bd1 {[%clk 0:00:17]}  Nxd1 {[%clk 0:00:06]} 34. Rxd1 {[%clk 0:00:16]}  Nf2+ {[%clk 0:00:06]} 0-1


[Site "https://www.chess.com"]

[Event "Titled Tuesday Blitz July 27 2021"]
[White "Demchenko, Anton"]
[Black "Sokolin, Leonid"]
[WhiteFideId "4160258"]
[BlackFideId "2009161"]
[WhiteElo "2593"]
[BlackElo "2394"]
[Result "1-0"]
[Round "01"]
[TimeControl "180+1"]
[Date "2021.07.27"]
[WhiteClock "0:01:03"]
[BlackClock "0:01:17"]

1. e4 {[%clk 0:02:56]}  c5 {[%clk 0:02:59]} 2. Nf3 {[%clk 0:02:56]}  Nc6 {[%clk 0:02:59]} 3. Bb5 {[%clk 0:02:56]}  g6 {[%clk 0:02:59]} 4. O-O {[%clk 0:02:55]}  Bg7 {[%clk 0:02:59]} 5. d3 {[%clk 0:02:55]}  e5 {[%clk 0:02:57]} 6. a3 {[%clk 0:02:55]}  Nge7 {[%clk 0:02:55]} 7. b4 {[%clk 0:02:56]}  d6 {[%clk 0:02:51]} 8. Bg5 {[%clk 0:02:56]}  Bd7 {[%clk 0:02:42]} 9. Nbd2 {[%clk 0:02:37]}  h6 {[%clk 0:02:42]} 10. Be3 {[%clk 0:02:32]}  cxb4 {[%clk 0:02:36]} 11. axb4 {[%clk 0:02:27]}  Nxb4 {[%clk 0:02:36]} 12. Qb1 {[%clk 0:02:18]}  a5 {[%clk 0:02:32]} 13. Bxd7+ {[%clk 0:02:17]}  Qxd7 {[%clk 0:02:31]} 14. Nc4 {[%clk 0:02:17]}  Ra6 {[%clk 0:02:03]} 15. Rxa5 {[%clk 0:01:54]}  Rxa5 {[%clk 0:02:02]} 16. Nxa5 {[%clk 0:01:55]}  Qa4 {[%clk 0:01:51]} 17. Nxb7 {[%clk 0:01:48]}  O-O {[%clk 0:01:49]} 18. c3 {[%clk 0:01:44]}  Na2 {[%clk 0:01:47]} 19. Nxd6 {[%clk 0:01:20]}  Nxc3 {[%clk 0:01:46]} 20. Qb2 {[%clk 0:01:20]}  Qd7 {[%clk 0:01:30]} 21. Qxc3 {[%clk 0:01:09]}  Qxd6 {[%clk 0:01:30]} 22. Bc5 {[%clk 0:01:08]}  Qc7 {[%clk 0:01:29]} 23. Qa3 {[%clk 0:01:05]}  Re8 {[%clk 0:01:23]} 24. Bd6 {[%clk 0:01:05]}  Qc2 {[%clk 0:01:17]} 25. Bxe7 {[%clk 0:01:03]} 1-0


[Site "https://www.chess.com"]

[Event "Titled Tuesday Blitz July 27 2021"]
[White "Derraugh, Geordie"]
[Black "Nabaty, Tamir"]
[WhiteFideId "2603950"]
[BlackFideId "2809052"]
[WhiteElo "2132"]
[BlackElo "2627"]
[Result "1-0"]
[Round "01"]
[TimeControl "180+1"]
[Date "2021.07.27"]
[WhiteClock "0:00:09"]
[BlackClock "0:00:40"]

1. e4 {[%clk 0:03:00]}  c6 {[%clk 0:02:51]} 2. d4 {[%clk 0:02:59]}  d5 {[%clk 0:02:52]} 3. f3 {[%clk 0:02:59]}  Qb6 {[%clk 0:02:49]} 4. a4 {[%clk 0:02:53]}  a5 {[%clk 0:02:39]} 5. Nc3 {[%clk 0:02:30]}  e6 {[%clk 0:02:29]} 6. Qd3 {[%clk 0:02:20]}  Bb4 {[%clk 0:02:29]} 7. Ne2 {[%clk 0:02:18]}  Nf6 {[%clk 0:02:28]} 8. Bd2 {[%clk 0:02:13]}  O-O {[%clk 0:02:24]} 9. h4 {[%clk 0:01:55]}  Na6 {[%clk 0:02:16]} 10. h5 {[%clk 0:01:39]}  dxe4 {[%clk 0:02:16]} 11. fxe4 {[%clk 0:01:38]}  e5 {[%clk 0:02:16]} 12. dxe5 {[%clk 0:01:29]}  Ng4 {[%clk 0:02:16]} 13. Qg3 {[%clk 0:01:21]}  Bc5 {[%clk 0:01:54]} 14. O-O-O {[%clk 0:01:21]}  Bf2 {[%clk 0:01:49]} 15. Qf4 {[%clk 0:01:10]}  Be3 {[%clk 0:01:49]} 16. Bxe3 {[%clk 0:01:08]}  Qxe3+ {[%clk 0:01:50]} 17. Qxe3 {[%clk 0:01:04]}  Nxe3 {[%clk 0:00:58]} 18. Rd3 {[%clk 0:01:04]}  Ng4 {[%clk 0:00:57]} 19. Rg3 {[%clk 0:01:04]}  Nxe5 {[%clk 0:00:57]} 20. Nf4 {[%clk 0:00:59]}  Nc5 {[%clk 0:00:57]} 21. h6 {[%clk 0:00:52]}  g6 {[%clk 0:00:57]} 22. Be2 {[%clk 0:00:53]}  Ne6 {[%clk 0:00:54]} 23. Rf1 {[%clk 0:00:45]}  Nxf4 {[%clk 0:00:54]} 24. Rxf4 {[%clk 0:00:46]}  Be6 {[%clk 0:00:54]} 25. b3 {[%clk 0:00:41]}  Rad8 {[%clk 0:00:54]} 26. Rf1 {[%clk 0:00:27]}  f6 {[%clk 0:00:54]} 27. Rd1 {[%clk 0:00:27]}  Kf7 {[%clk 0:00:54]} 28. Re3 {[%clk 0:00:19]}  Rxd1+ {[%clk 0:00:46]} 29. Bxd1 {[%clk 0:00:19]}  Ke7 {[%clk 0:00:45]} 30. Re1 {[%clk 0:00:18]}  Rd8 {[%clk 0:00:44]} 31. Be2 {[%clk 0:00:18]}  Nf7 {[%clk 0:00:43]} 32. Rh1 {[%clk 0:00:17]}  Kd6 {[%clk 0:00:44]} 33. Bd3 {[%clk 0:00:14]}  Ke5 {[%clk 0:00:43]} 34. Ne2 {[%clk 0:00:14]}  Bg4 {[%clk 0:00:42]} 35. Ng1 {[%clk 0:00:11]}  Ng5 {[%clk 0:00:42]} 36. Nh3 {[%clk 0:00:09]}  Bxh3 {[%clk 0:00:41]} 37. gxh3 {[%clk 0:00:10]}  Nf7 {[%clk 0:00:40]} 38. h4 {[%clk 0:00:09]} 1-0


[Site "https://www.chess.com"]

[Event "Titled Tuesday Blitz July 27 2021"]
[White "Indjic, Aleksandar"]
[Black "Horak, Martin"]
[WhiteFideId "911925"]
[BlackFideId "367095"]
[WhiteElo "2643"]
[BlackElo "1997"]
[Result "1-0"]
[Round "01"]
[TimeControl "180+1"]
[Date "2021.07.27"]
[WhiteClock "0:01:24"]
[BlackClock "0:00:01"]

1. e4 {[%clk 0:02:57]}  e5 {[%clk 0:02:57]} 2. Nf3 {[%clk 0:02:57]}  Nc6 {[%clk 0:02:57]} 3. Bb5 {[%clk 0:02:56]}  a6 {[%clk 0:02:56]} 4. Ba4 {[%clk 0:02:56]}  Nf6 {[%clk 0:02:54]} 5. O-O {[%clk 0:02:56]}  Be7 {[%clk 0:02:55]} 6. Re1 {[%clk 0:02:54]}  b5 {[%clk 0:02:55]} 7. Bb3 {[%clk 0:02:53]}  d6 {[%clk 0:02:56]} 8. c3 {[%clk 0:02:52]}  O-O {[%clk 0:02:55]} 9. d4 {[%clk 0:02:53]}  Bg4 {[%clk 0:02:49]} 10. d5 {[%clk 0:02:53]}  Na5 {[%clk 0:02:35]} 11. Bc2 {[%clk 0:02:53]}  Qc8 {[%clk 0:02:31]} 12. Nbd2 {[%clk 0:02:49]}  c6 {[%clk 0:02:12]} 13. b4 {[%clk 0:02:41]}  Nc4 {[%clk 0:01:57]} 14. Nxc4 {[%clk 0:02:39]}  bxc4 {[%clk 0:01:58]} 15. dxc6 {[%clk 0:02:39]}  Qxc6 {[%clk 0:01:52]} 16. h3 {[%clk 0:02:39]}  Bc8 {[%clk 0:01:33]} 17. Bg5 {[%clk 0:02:35]}  Bb7 {[%clk 0:01:28]} 18. Bxf6 {[%clk 0:02:20]}  Bxf6 {[%clk 0:01:26]} 19. Nh2 {[%clk 0:02:00]}  d5 {[%clk 0:01:01]} 20. exd5 {[%clk 0:01:55]}  Qxd5 {[%clk 0:01:00]} 21. Be4 {[%clk 0:01:45]}  Qxd1 {[%clk 0:00:34]} 22. Raxd1 {[%clk 0:01:44]}  Bxe4 {[%clk 0:00:33]} 23. Rxe4 {[%clk 0:01:45]}  Rfd8 {[%clk 0:00:20]} 24. Rxd8+ {[%clk 0:01:43]}  Rxd8 {[%clk 0:00:21]} 25. Ng4 {[%clk 0:01:43]}  Rc8 {[%clk 0:00:09]} 26. Ne3 {[%clk 0:01:39]}  a5 {[%clk 0:00:06]} 27. Rxc4 {[%clk 0:01:36]}  Rxc4 {[%clk 0:00:05]} 28. Nxc4 {[%clk 0:01:37]}  axb4 {[%clk 0:00:06]} 29. cxb4 {[%clk 0:01:37]}  Kf8 {[%clk 0:00:07]} 30. a4 {[%clk 0:01:35]}  Ke7 {[%clk 0:00:07]} 31. a5 {[%clk 0:01:35]}  Kd8 {[%clk 0:00:07]} 32. a6 {[%clk 0:01:35]}  Kc7 {[%clk 0:00:07]} 33. b5 {[%clk 0:01:34]}  g6 {[%clk 0:00:06]} 34. b6+ {[%clk 0:01:34]}  Kc6 {[%clk 0:00:06]} 35. b7 {[%clk 0:01:26]}  Kc7 {[%clk 0:00:06]} 36. Nb6 {[%clk 0:01:25]}  Bg7 {[%clk 0:00:02]} 37. Nd7 {[%clk 0:01:24]}  f5 {[%clk 0:00:01]} 1-0


[Site "https://www.chess.com"]

[Event "Titled Tuesday Blitz July 27 2021"]
[White "Khusnutdinov, Rustam"]
[Black "Urjubdshzirov, Erdni"]
[WhiteFideId "13701703"]
[BlackFideId "4186451"]
[WhiteElo "2571"]
[BlackElo "2425"]
[Result "1-0"]
[Round "01"]
[TimeControl "180+1"]
[Date "2021.07.27"]
[WhiteClock "0:00:35"]
[BlackClock "0:00:11"]

1. d4 {[%clk 0:02:55]}  Nf6 {[%clk 0:02:59]} 2. c4 {[%clk 0:02:55]}  e6 {[%clk 0:03:00]} 3. Nc3 {[%clk 0:02:47]}  c5 {[%clk 0:02:58]} 4. d5 {[%clk 0:02:43]}  exd5 {[%clk 0:02:59]} 5. cxd5 {[%clk 0:02:42]}  Bd6 {[%clk 0:02:59]} 6. g3 {[%clk 0:02:38]}  O-O {[%clk 0:02:58]} 7. Bg2 {[%clk 0:02:38]}  a6 {[%clk 0:02:55]} 8. a4 {[%clk 0:02:36]}  h6 {[%clk 0:02:55]} 9. Nf3 {[%clk 0:02:36]}  Re8 {[%clk 0:02:54]} 10. O-O {[%clk 0:02:35]}  Bc7 {[%clk 0:02:52]} 11. d6 {[%clk 0:02:30]}  Ba5 {[%clk 0:02:51]} 12. Qc2 {[%clk 0:02:29]}  Nc6 {[%clk 0:02:50]} 13. Rd1 {[%clk 0:02:28]}  Rb8 {[%clk 0:02:49]} 14. Be3 {[%clk 0:02:20]}  c4 {[%clk 0:02:44]} 15. Nd4 {[%clk 0:02:11]}  Nxd4 {[%clk 0:02:17]} 16. Bxd4 {[%clk 0:02:09]}  Bb6 {[%clk 0:02:17]} 17. e3 {[%clk 0:01:44]}  Bxd4 {[%clk 0:02:15]} 18. Rxd4 {[%clk 0:01:45]}  b5 {[%clk 0:02:15]} 19. axb5 {[%clk 0:01:44]}  axb5 {[%clk 0:02:15]} 20. Qf5 {[%clk 0:01:42]}  Qb6 {[%clk 0:02:05]} 21. Ne4 {[%clk 0:01:30]}  Nh7 {[%clk 0:01:36]} 22. Qc5 {[%clk 0:01:17]}  Qxc5 {[%clk 0:01:26]} 23. Nxc5 {[%clk 0:01:18]}  Nf8 {[%clk 0:01:25]} 24. Ra7 {[%clk 0:01:15]}  Re5 {[%clk 0:01:21]} 25. Bd5 {[%clk 0:00:58]}  Ne6 {[%clk 0:01:08]} 26. Bxe6 {[%clk 0:00:56]}  Rxc5 {[%clk 0:01:00]} 27. Bxd7 {[%clk 0:00:55]}  Bb7 {[%clk 0:00:37]} 28. Bh3 {[%clk 0:00:45]}  Bd5 {[%clk 0:00:27]} 29. Rc7 {[%clk 0:00:44]}  Bc6 {[%clk 0:00:13]} 30. Bg2 {[%clk 0:00:37]}  Bxg2 {[%clk 0:00:11]} 31. Rxc5 {[%clk 0:00:36]}  Bh3 {[%clk 0:00:11]} 32. d7 {[%clk 0:00:35]} 1-0


[Site "https://www.chess.com"]

[Event "Titled Tuesday Blitz July 27 2021"]
[White "Le, Tuan Minh"]
[Black "Grinblat, Dmitry"]
[WhiteFideId "12401153"]
[BlackFideId "4163257"]
[WhiteElo "2450"]
[BlackElo "2438"]
[Result "1-0"]
[Round "01"]
[TimeControl "180+1"]
[Date "2021.07.27"]
[WhiteClock "0:00:57"]
[BlackClock "0:00:58"]

1. d4 {[%clk 0:03:00]}  d5 {[%clk 0:02:59]} 2. Nf3 {[%clk 0:03:00]}  Nf6 {[%clk 0:03:00]} 3. Bf4 {[%clk 0:02:57]}  c5 {[%clk 0:02:59]} 4. c3 {[%clk 0:02:57]}  Nc6 {[%clk 0:02:59]} 5. e3 {[%clk 0:02:57]}  e6 {[%clk 0:02:59]} 6. Nbd2 {[%clk 0:02:57]}  Bd6 {[%clk 0:02:51]} 7. Bg3 {[%clk 0:02:54]}  O-O {[%clk 0:02:47]} 8. Bb5 {[%clk 0:02:54]}  a6 {[%clk 0:02:30]} 9. Bxc6 {[%clk 0:02:54]}  bxc6 {[%clk 0:02:31]} 10. Qa4 {[%clk 0:02:54]}  Bb7 {[%clk 0:02:20]} 11. Bxd6 {[%clk 0:02:40]}  Qxd6 {[%clk 0:02:20]} 12. Qa3 {[%clk 0:02:41]}  Rfd8 {[%clk 0:02:05]} 13. Nb3 {[%clk 0:02:21]}  c4 {[%clk 0:01:58]} 14. Qxd6 {[%clk 0:02:20]}  Rxd6 {[%clk 0:01:58]} 15. Nc5 {[%clk 0:02:21]}  Bc8 {[%clk 0:01:55]} 16. b3 {[%clk 0:02:21]}  cxb3 {[%clk 0:01:53]} 17. axb3 {[%clk 0:02:22]}  Nd7 {[%clk 0:01:47]} 18. Nxd7 {[%clk 0:02:19]}  Bxd7 {[%clk 0:01:45]} 19. b4 {[%clk 0:02:19]}  f6 {[%clk 0:01:42]} 20. Ra5 {[%clk 0:02:17]}  Bc8 {[%clk 0:01:40]} 21. Ke2 {[%clk 0:02:15]}  Bb7 {[%clk 0:01:37]} 22. Rha1 {[%clk 0:02:15]}  Re8 {[%clk 0:01:36]} 23. Ne1 {[%clk 0:02:12]}  e5 {[%clk 0:01:36]} 24. Nd3 {[%clk 0:02:11]}  Bc8 {[%clk 0:01:29]} 25. Nc5 {[%clk 0:02:10]}  f5 {[%clk 0:01:27]} 26. dxe5 {[%clk 0:02:07]}  Rxe5 {[%clk 0:01:26]} 27. g3 {[%clk 0:02:08]}  g5 {[%clk 0:01:26]} 28. Nxa6 {[%clk 0:01:31]}  f4 {[%clk 0:01:23]} 29. gxf4 {[%clk 0:01:20]}  gxf4 {[%clk 0:01:21]} 30. Rg1+ {[%clk 0:01:21]}  Rg6 {[%clk 0:01:13]} 31. Rxg6+ {[%clk 0:01:20]}  hxg6 {[%clk 0:01:14]} 32. Nc5 {[%clk 0:01:20]}  Bg4+ {[%clk 0:01:14]} 33. Kd3 {[%clk 0:01:17]}  fxe3 {[%clk 0:01:13]} 34. fxe3 {[%clk 0:01:18]}  Rh5 {[%clk 0:01:13]} 35. Ra6 {[%clk 0:01:16]}  Rxh2 {[%clk 0:01:10]} 36. Rxc6 {[%clk 0:01:16]}  Kf7 {[%clk 0:01:08]} 37. Kd4 {[%clk 0:01:08]}  Rd2+ {[%clk 0:01:04]} 38. Ke5 {[%clk 0:01:07]}  Re2 {[%clk 0:01:04]} 39. Rc7+ {[%clk 0:01:05]}  Kg8 {[%clk 0:01:02]} 40. Kf4 {[%clk 0:01:03]}  Bf5 {[%clk 0:01:01]} 41. b5 {[%clk 0:01:03]}  Rb2 {[%clk 0:01:01]} 42. Rb7 {[%clk 0:01:00]}  Kf8 {[%clk 0:01:00]} 43. b6 {[%clk 0:00:59]}  Ke8 {[%clk 0:01:01]} 44. Ke5 {[%clk 0:00:58]}  Kd8 {[%clk 0:01:00]} 45. Kd6 {[%clk 0:00:57]}  Kc8 {[%clk 0:00:58]} 46. Rc7+ {[%clk 0:00:57]}  Kb8 {[%clk 0:00:58]} 47. Na6+ {[%clk 0:00:57]} 1-0


[Site "https://www.chess.com"]

[Event "Titled Tuesday Blitz July 27 2021"]
[White "Makhnev, Denis"]
[Black "Milosevic, Milos"]
[WhiteFideId "13707647"]
[BlackFideId "964875"]
[WhiteElo "2537"]
[BlackElo "2135"]
[Result "1-0"]
[Round "01"]
[TimeControl "180+1"]
[Date "2021.07.27"]
[WhiteClock "0:01:06"]
[BlackClock "0:00:50"]

1. d4 {[%clk 0:03:00]}  Nf6 {[%clk 0:02:58]} 2. c4 {[%clk 0:02:56]}  e6 {[%clk 0:02:58]} 3. Nf3 {[%clk 0:02:56]}  c5 {[%clk 0:02:56]} 4. d5 {[%clk 0:02:56]}  exd5 {[%clk 0:02:55]} 5. cxd5 {[%clk 0:02:56]}  g6 {[%clk 0:02:55]} 6. Nc3 {[%clk 0:02:56]}  Bg7 {[%clk 0:02:55]} 7. g3 {[%clk 0:02:57]}  O-O {[%clk 0:02:54]} 8. Bg2 {[%clk 0:02:57]}  d6 {[%clk 0:02:46]} 9. O-O {[%clk 0:02:56]}  Bf5 {[%clk 0:02:43]} 10. Nh4 {[%clk 0:02:53]}  Bd7 {[%clk 0:02:37]} 11. Bf4 {[%clk 0:02:52]}  Ne8 {[%clk 0:02:33]} 12. Nf3 {[%clk 0:02:48]}  h6 {[%clk 0:02:31]} 13. a4 {[%clk 0:02:43]}  g5 {[%clk 0:02:28]} 14. Bd2 {[%clk 0:02:42]}  Na6 {[%clk 0:02:28]} 15. h4 {[%clk 0:02:42]}  f6 {[%clk 0:02:14]} 16. Re1 {[%clk 0:02:38]}  Nec7 {[%clk 0:02:10]} 17. Qb3 {[%clk 0:02:09]}  Nb4 {[%clk 0:02:01]} 18. e4 {[%clk 0:01:24]}  Kh8 {[%clk 0:01:55]} 19. Nd1 {[%clk 0:01:20]}  Nca6 {[%clk 0:01:52]} 20. Ne3 {[%clk 0:01:20]}  b5 {[%clk 0:01:40]} 21. axb5 {[%clk 0:01:14]}  Bxb5 {[%clk 0:01:41]} 22. Bf1 {[%clk 0:01:15]}  Bxf1 {[%clk 0:01:39]} 23. Kxf1 {[%clk 0:01:13]}  Rb8 {[%clk 0:01:38]} 24. Qc4 {[%clk 0:01:14]}  Qb6 {[%clk 0:01:34]} 25. Bc3 {[%clk 0:01:13]}  Qb5 {[%clk 0:01:33]} 26. Qxb5 {[%clk 0:01:11]}  Rxb5 {[%clk 0:01:34]} 27. Ra4 {[%clk 0:01:10]}  Rfb8 {[%clk 0:01:29]} 28. Nf5 {[%clk 0:01:06]}  R5b6 {[%clk 0:01:14]} 29. Rea1 {[%clk 0:01:06]}  g4 {[%clk 0:00:50]} 30. Nd2 {[%clk 0:01:06]} 1-0


[Site "https://www.chess.com"]

[Event "Titled Tuesday Blitz July 27 2021"]
[White "Parkhov, Yair"]
[Black "Nakamura, Hikaru"]
[WhiteFideId "2813408"]
[BlackFideId "2016192"]
[WhiteElo "2131"]
[BlackElo "2900"]
[Result "1/2-1/2"]
[Round "01"]
[TimeControl "180+1"]
[Date "2021.07.27"]
[WhiteClock "0:00:08"]
[BlackClock "0:00:06"]

1. e4 {[%clk 0:03:00]}  g6 {[%clk 0:02:58]} 2. d4 {[%clk 0:02:58]}  Bg7 {[%clk 0:02:59]} 3. Nf3 {[%clk 0:02:58]}  c6 {[%clk 0:02:47]} 4. Nc3 {[%clk 0:02:52]}  d5 {[%clk 0:02:48]} 5. h3 {[%clk 0:02:52]}  a6 {[%clk 0:02:48]} 6. Bf4 {[%clk 0:02:44]}  dxe4 {[%clk 0:02:46]} 7. Nxe4 {[%clk 0:02:43]}  Nf6 {[%clk 0:02:47]} 8. Nxf6+ {[%clk 0:02:37]}  exf6 {[%clk 0:02:48]} 9. Qd2 {[%clk 0:02:37]}  O-O {[%clk 0:02:47]} 10. O-O-O {[%clk 0:02:37]}  b5 {[%clk 0:02:46]} 11. Bh6 {[%clk 0:02:35]}  Be6 {[%clk 0:02:42]} 12. h4 {[%clk 0:02:18]}  Nd7 {[%clk 0:02:27]} 13. Bd3 {[%clk 0:02:06]}  Nb6 {[%clk 0:02:20]} 14. Bxg7 {[%clk 0:01:36]}  Kxg7 {[%clk 0:02:21]} 15. h5 {[%clk 0:01:35]}  g5 {[%clk 0:02:21]} 16. h6+ {[%clk 0:01:34]}  Kh8 {[%clk 0:02:20]} 17. a3 {[%clk 0:01:26]}  Qd5 {[%clk 0:02:17]} 18. Qe3 {[%clk 0:01:12]}  Rfe8 {[%clk 0:02:08]} 19. Rhe1 {[%clk 0:00:55]}  Bd7 {[%clk 0:01:48]} 20. Ne5 {[%clk 0:00:51]}  Rad8 {[%clk 0:01:32]} 21. Qg3 {[%clk 0:00:33]}  Bc8 {[%clk 0:01:00]} 22. b3 {[%clk 0:00:23]}  Kg8 {[%clk 0:00:39]} 23. Be4 {[%clk 0:00:21]}  Qd6 {[%clk 0:00:40]} 24. Nxc6 {[%clk 0:00:20]}  Qxa3+ {[%clk 0:00:32]} 25. Kb1 {[%clk 0:00:18]}  Be6 {[%clk 0:00:32]} 26. Nxd8 {[%clk 0:00:15]}  Na4 {[%clk 0:00:32]} 27. bxa4 {[%clk 0:00:06]}  Ba2+ {[%clk 0:00:29]} 28. Ka1 {[%clk 0:00:07]}  Bb3+ {[%clk 0:00:18]} 29. Kb1 {[%clk 0:00:07]}  Ba2+ {[%clk 0:00:11]} 30. Ka1 {[%clk 0:00:08]}  Bb3+ {[%clk 0:00:06]} 31. Kb1 {[%clk 0:00:08]}  Ba2+ {[%clk 0:00:06]} 1/2-1/2


[Site "https://www.chess.com"]